[Event "Titled Tuesday Blitz June 15 2021"]
[White "Dimic, Pavle"]
[Black "Hess, Robert"]
[WhiteFideId "937428"]
[BlackFideId "2022036"]
[WhiteElo "2216"]
[BlackElo "2557"]
[Result "1-0"]
[Round "08"]
[TimeControl "180+1"]
[Date "2021.06.15"]
[WhiteClock "0:01:48"]
[BlackClock "0:00:08"]

1. d4 {[%clk 0:03:00]}  g6 {[%clk 0:02:59]} 2. c4 {[%clk 0:03:00]}  Bg7 {[%clk 0:02:58]} 3. Nf3 {[%clk 0:03:00]}  c5 {[%clk 0:02:59]} 4. e4 {[%clk 0:03:00]}  cxd4 {[%clk 0:02:59]} 5. Nxd4 {[%clk 0:03:01]}  Nc6 {[%clk 0:03:00]} 6. Be3 {[%clk 0:03:02]}  Nf6 {[%clk 0:02:58]} 7. Nc3 {[%clk 0:03:02]}  O-O {[%clk 0:02:58]} 8. Bd3 {[%clk 0:02:45]}  Ng4 {[%clk 0:02:40]} 9. Qxg4 {[%clk 0:02:43]}  Nxd4 {[%clk 0:02:40]} 10. Qd1 {[%clk 0:02:41]}  d6 {[%clk 0:02:27]} 11. O-O {[%clk 0:02:40]}  a6 {[%clk 0:02:22]} 12. Rc1 {[%clk 0:02:39]}  Rb8 {[%clk 0:02:22]} 13. f4 {[%clk 0:02:36]}  b5 {[%clk 0:02:14]} 14. cxb5 {[%clk 0:02:29]}  axb5 {[%clk 0:02:14]} 15. f5 {[%clk 0:02:29]}  b4 {[%clk 0:01:59]} 16. Nd5 {[%clk 0:02:28]}  Be5 {[%clk 0:01:08]} 17. Bc4 {[%clk 0:02:26]}  Nc6 {[%clk 0:00:46]} 18. Bh6 {[%clk 0:02:00]}  Na5 {[%clk 0:00:11]} 19. Bxf8 {[%clk 0:01:59]}  Qxf8 {[%clk 0:00:11]} 20. fxg6 {[%clk 0:01:56]}  hxg6 {[%clk 0:00:10]} 21. Nxe7+ {[%clk 0:01:49]}  Qxe7 {[%clk 0:00:10]} 22. Rxf7 {[%clk 0:01:48]}  Qxf7 {[%clk 0:00:09]} 23. Bxf7+ {[%clk 0:01:49]}  Kxf7 {[%clk 0:00:09]} 24. Qd5+ {[%clk 0:01:48]}  Be6 {[%clk 0:00:08]} 1-0


[Site "https://www.chess.com"]

[Event "Titled Tuesday Blitz June 15 2021"]
[White "Enriquack"]
[Black "Pakleza, Zbigniew"]
[BlackFideId "1119290"]
[WhiteElo "2521"]
[BlackElo "2526"]
[Result "0-1"]
[Round "08"]
[TimeControl "180+1"]
[Date "2021.06.15"]
[WhiteClock "0:00:13"]
[BlackClock "0:00:03"]

1. e4 {[%clk 0:03:00]}  d6 {[%clk 0:02:59]} 2. d4 {[%clk 0:03:00]}  Nf6 {[%clk 0:03:00]} 3. Nc3 {[%clk 0:03:00]}  c6 {[%clk 0:03:00]} 4. Nf3 {[%clk 0:02:56]}  Bg4 {[%clk 0:03:00]} 5. h3 {[%clk 0:02:56]}  Bh5 {[%clk 0:03:00]} 6. g4 {[%clk 0:02:50]}  Bg6 {[%clk 0:03:00]} 7. Qe2 {[%clk 0:02:51]}  e6 {[%clk 0:02:55]} 8. Nh4 {[%clk 0:02:36]}  Bxe4 {[%clk 0:02:42]} 9. f3 {[%clk 0:02:24]}  Bg6 {[%clk 0:02:29]} 10. Nxg6 {[%clk 0:02:22]}  hxg6 {[%clk 0:02:30]} 11. Bg2 {[%clk 0:02:14]}  Qb6 {[%clk 0:02:20]} 12. Qd3 {[%clk 0:02:03]}  Nbd7 {[%clk 0:02:06]} 13. Bd2 {[%clk 0:01:59]}  O-O-O {[%clk 0:02:00]} 14. O-O-O {[%clk 0:01:58]}  d5 {[%clk 0:01:55]} 15. f4 {[%clk 0:01:48]}  Bd6 {[%clk 0:01:52]} 16. Rhf1 {[%clk 0:01:47]}  Kb8 {[%clk 0:01:47]} 17. Kb1 {[%clk 0:01:45]}  Qc7 {[%clk 0:01:41]} 18. Bc1 {[%clk 0:01:42]}  a6 {[%clk 0:01:28]} 19. Rde1 {[%clk 0:01:40]}  c5 {[%clk 0:01:12]} 20. f5 {[%clk 0:01:37]}  gxf5 {[%clk 0:01:08]} 21. gxf5 {[%clk 0:01:36]}  cxd4 {[%clk 0:00:41]} 22. fxe6 {[%clk 0:01:28]}  dxc3 {[%clk 0:00:39]} 23. exd7 {[%clk 0:01:28]}  cxb2 {[%clk 0:00:40]} 24. Bxb2 {[%clk 0:01:27]}  Rxd7 {[%clk 0:00:30]} 25. Rf5 {[%clk 0:01:07]}  Rc8 {[%clk 0:00:15]} 26. Rg5 {[%clk 0:01:05]}  Ka8 {[%clk 0:00:08]} 27. Rxg7 {[%clk 0:01:03]}  Ne4 {[%clk 0:00:08]} 28. Rc1 {[%clk 0:00:55]}  Be5 {[%clk 0:00:07]} 29. Rh7 {[%clk 0:00:40]}  Bxb2 {[%clk 0:00:06]} 30. Kxb2 {[%clk 0:00:40]}  Qe5+ {[%clk 0:00:05]} 31. c3 {[%clk 0:00:38]}  Rdc7 {[%clk 0:00:06]} 32. Rh4 {[%clk 0:00:21]}  f5 {[%clk 0:00:06]} 33. Rh6 {[%clk 0:00:17]}  Qf4 {[%clk 0:00:03]} 34. Rc2 {[%clk 0:00:15]}  Qxh6 {[%clk 0:00:03]} 35. Qxd5 {[%clk 0:00:14]}  Qb6+ {[%clk 0:00:03]} 36. Kc1 {[%clk 0:00:14]}  Nxc3 {[%clk 0:00:03]} 37. Qxf5 {[%clk 0:00:14]}  Nxa2+ {[%clk 0:00:02]} 38. Kd2 {[%clk 0:00:13]}  Rxc2+ {[%clk 0:00:03]} 0-1


[Site "https://www.chess.com"]

[Event "Titled Tuesday Blitz June 15 2021"]
[White "Erdogdu, Mert"]
[Black "Yaran, Siar"]
[WhiteFideId "6301495"]
[BlackFideId "6323006"]
[WhiteElo "2485"]
[BlackElo "1977"]
[Result "1/2-1/2"]
[Round "08"]
[TimeControl "180+1"]
[Date "2021.06.15"]
[WhiteClock "0:00:16"]
[BlackClock "0:00:09"]

1. e4 {[%clk 0:03:00]}  e5 {[%clk 0:02:59]} 2. Nf3 {[%clk 0:03:01]}  Nc6 {[%clk 0:02:59]} 3. Bc4 {[%clk 0:03:00]}  Bc5 {[%clk 0:02:58]} 4. d3 {[%clk 0:02:59]}  Nf6 {[%clk 0:02:59]} 5. O-O {[%clk 0:02:59]}  O-O {[%clk 0:02:55]} 6. a4 {[%clk 0:02:59]}  a6 {[%clk 0:02:55]} 7. h3 {[%clk 0:02:55]}  h6 {[%clk 0:02:55]} 8. Re1 {[%clk 0:02:55]}  Re8 {[%clk 0:02:53]} 9. Nbd2 {[%clk 0:02:54]}  d6 {[%clk 0:02:46]} 10. c3 {[%clk 0:02:54]}  Be6 {[%clk 0:02:45]} 11. Bxe6 {[%clk 0:02:51]}  Rxe6 {[%clk 0:02:44]} 12. Nf1 {[%clk 0:02:48]}  Ba7 {[%clk 0:02:42]} 13. Ng3 {[%clk 0:02:42]}  d5 {[%clk 0:02:41]} 14. Qb3 {[%clk 0:02:42]}  Bb6 {[%clk 0:01:56]} 15. Bd2 {[%clk 0:02:07]}  Qd7 {[%clk 0:01:46]} 16. Rad1 {[%clk 0:02:06]}  Rd8 {[%clk 0:01:38]} 17. Bc1 {[%clk 0:02:03]}  dxe4 {[%clk 0:01:32]} 18. dxe4 {[%clk 0:02:03]}  Rd6 {[%clk 0:01:31]} 19. Rxd6 {[%clk 0:01:58]}  Qxd6 {[%clk 0:01:32]} 20. Qc4 {[%clk 0:01:04]}  Qd3 {[%clk 0:01:19]} 21. Qxd3 {[%clk 0:01:01]}  Rxd3 {[%clk 0:01:20]} 22. Kf1 {[%clk 0:01:01]}  Rd8 {[%clk 0:00:57]} 23. Ke2 {[%clk 0:01:01]}  Ne8 {[%clk 0:00:39]} 24. b4 {[%clk 0:00:48]}  Nd6 {[%clk 0:00:26]} 25. Rd1 {[%clk 0:00:47]}  f6 {[%clk 0:00:22]} 26. Ba3 {[%clk 0:00:38]}  Nc4 {[%clk 0:00:20]} 27. Rxd8+ {[%clk 0:00:35]}  Nxd8 {[%clk 0:00:21]} 28. Bc1 {[%clk 0:00:35]}  Ne6 {[%clk 0:00:20]} 29. Nf5 {[%clk 0:00:33]}  h5 {[%clk 0:00:20]} 30. Ne7+ {[%clk 0:00:30]}  Kf7 {[%clk 0:00:20]} 31. Nd5 {[%clk 0:00:31]}  Ba7 {[%clk 0:00:20]} 32. Kd3 {[%clk 0:00:29]}  Nd6 {[%clk 0:00:21]} 33. Be3 {[%clk 0:00:20]}  Bxe3 {[%clk 0:00:20]} 34. Kxe3 {[%clk 0:00:20]}  c6 {[%clk 0:00:18]} 35. Nb6 {[%clk 0:00:20]}  g5 {[%clk 0:00:17]} 36. g3 {[%clk 0:00:20]}  Ke7 {[%clk 0:00:17]} 37. a5 {[%clk 0:00:19]}  Nb5 {[%clk 0:00:17]} 38. Kd3 {[%clk 0:00:19]}  Nd6 {[%clk 0:00:14]} 39. h4 {[%clk 0:00:19]}  g4 {[%clk 0:00:14]} 40. Nd2 {[%clk 0:00:19]}  Nc7 {[%clk 0:00:14]} 41. Nb3 {[%clk 0:00:19]}  Ne6 {[%clk 0:00:13]} 42. Na4 {[%clk 0:00:18]}  Nf7 {[%clk 0:00:11]} 43. Nac5 {[%clk 0:00:18]}  Nxc5+ {[%clk 0:00:11]} 44. Nxc5 {[%clk 0:00:19]}  Nd6 {[%clk 0:00:11]} 45. c4 {[%clk 0:00:17]}  Kf7 {[%clk 0:00:11]} 46. Nd7 {[%clk 0:00:15]}  Ke6 {[%clk 0:00:10]} 47. Nc5+ {[%clk 0:00:15]}  Kf7 {[%clk 0:00:10]} 48. Kc3 {[%clk 0:00:16]}  Kg6 {[%clk 0:00:10]} 49. Kd3 {[%clk 0:00:16]}  Kf7 {[%clk 0:00:09]} 1/2-1/2


[Site "https://www.chess.com"]

[Event "Titled Tuesday Blitz June 15 2021"]
[White "Florescu, Codrut-Constantin"]
[Black "Mikhailovsky, Vladimir"]
[WhiteFideId "1202200"]
[BlackFideId "34105414"]
[WhiteElo "2243"]
[BlackElo "2314"]
[Result "0-1"]
[Round "08"]
[TimeControl "180+1"]
[Date "2021.06.15"]
[WhiteClock "0:00:17"]
[BlackClock "0:00:07"]

1. d4 {[%clk 0:03:00]}  Nf6 {[%clk 0:02:59]} 2. c4 {[%clk 0:03:00]}  d6 {[%clk 0:03:00]} 3. Nc3 {[%clk 0:02:57]}  e5 {[%clk 0:03:00]} 4. Nf3 {[%clk 0:02:56]}  Nbd7 {[%clk 0:02:58]} 5. e4 {[%clk 0:02:55]}  Be7 {[%clk 0:02:58]} 6. d5 {[%clk 0:02:54]}  O-O {[%clk 0:02:58]} 7. g3 {[%clk 0:02:53]}  Nc5 {[%clk 0:02:57]} 8. Qc2 {[%clk 0:02:52]}  c6 {[%clk 0:02:53]} 9. Bg2 {[%clk 0:02:51]}  cxd5 {[%clk 0:02:53]} 10. cxd5 {[%clk 0:02:51]}  b5 {[%clk 0:02:37]} 11. b4 {[%clk 0:02:49]}  Ncd7 {[%clk 0:02:11]} 12. O-O {[%clk 0:02:47]}  Ba6 {[%clk 0:01:59]} 13. h3 {[%clk 0:02:43]}  Rc8 {[%clk 0:01:58]} 14. Be3 {[%clk 0:02:41]}  Nxe4 {[%clk 0:01:51]} 15. Qxe4 {[%clk 0:02:39]}  Rxc3 {[%clk 0:01:52]} 16. Bxa7 {[%clk 0:02:31]}  Qc7 {[%clk 0:01:35]} 17. Be3 {[%clk 0:02:23]}  f5 {[%clk 0:01:27]} 18. Qb1 {[%clk 0:02:23]}  Bb7 {[%clk 0:01:11]} 19. Bg5 {[%clk 0:02:14]}  e4 {[%clk 0:00:49]} 20. Bxe7 {[%clk 0:02:08]}  exf3 {[%clk 0:00:49]} 21. Bxf8 {[%clk 0:02:00]}  fxg2 {[%clk 0:00:49]} 22. Rc1 {[%clk 0:01:54]}  Nxf8 {[%clk 0:00:42]} 23. Qb2 {[%clk 0:01:37]}  Rc4 {[%clk 0:00:40]} 24. a4 {[%clk 0:01:31]}  bxa4 {[%clk 0:00:40]} 25. Rxc4 {[%clk 0:01:28]}  Qxc4 {[%clk 0:00:41]} 26. Kxg2 {[%clk 0:01:18]}  Qxd5+ {[%clk 0:00:41]} 27. Kf1 {[%clk 0:01:17]}  Qg2+ {[%clk 0:00:24]} 28. Ke2 {[%clk 0:01:16]}  Qf3+ {[%clk 0:00:16]} 29. Ke1 {[%clk 0:01:12]}  Ne6 {[%clk 0:00:10]} 30. Ra3 {[%clk 0:01:10]}  Qh1+ {[%clk 0:00:09]} 31. Ke2 {[%clk 0:01:10]}  Qe4+ {[%clk 0:00:05]} 32. Kd2 {[%clk 0:01:06]}  Nd4 {[%clk 0:00:05]} 33. Re3 {[%clk 0:01:05]}  Qd5 {[%clk 0:00:05]} 34. Rd3 {[%clk 0:01:01]}  Nb3+ {[%clk 0:00:04]} 35. Kc2 {[%clk 0:00:54]}  Qc4+ {[%clk 0:00:03]} 36. Qc3 {[%clk 0:00:54]}  Qxc3+ {[%clk 0:00:02]} 37. Kxc3 {[%clk 0:00:54]}  d5 {[%clk 0:00:02]} 38. b5 {[%clk 0:00:53]}  d4+ {[%clk 0:00:02]} 39. Kb4 {[%clk 0:00:53]}  Be4 {[%clk 0:00:03]} 40. Rd1 {[%clk 0:00:49]}  Kf7 {[%clk 0:00:02]} 41. b6 {[%clk 0:00:47]}  Ke7 {[%clk 0:00:02]} 42. Kxa4 {[%clk 0:00:44]}  Bc2 {[%clk 0:00:02]} 43. Re1+ {[%clk 0:00:41]}  Kd7 {[%clk 0:00:02]} 44. Kb4 {[%clk 0:00:39]}  d3 {[%clk 0:00:01]} 45. Kc3 {[%clk 0:00:36]}  Nc5 {[%clk 0:00:01]} 46. f3 {[%clk 0:00:32]}  Kc6 {[%clk 0:00:01]} 47. Re7 {[%clk 0:00:31]}  Kxb6 {[%clk 0:00:01]} 48. Rxg7 {[%clk 0:00:30]}  Kb5 {[%clk 0:00:01]} 49. Rxh7 {[%clk 0:00:26]}  Na4+ {[%clk 0:00:02]} 50. Kd2 {[%clk 0:00:26]}  Nb6 {[%clk 0:00:02]} 51. Rc7 {[%clk 0:00:23]}  Nc4+ {[%clk 0:00:02]} 52. Kc1 {[%clk 0:00:20]}  Kb4 {[%clk 0:00:02]} 53. h4 {[%clk 0:00:19]}  Ba4 {[%clk 0:00:01]} 54. Rxc4+ {[%clk 0:00:16]}  Kxc4 {[%clk 0:00:02]} 55. Kd2 {[%clk 0:00:16]}  Bc6 {[%clk 0:00:03]} 56. g4 {[%clk 0:00:16]}  fxg4 {[%clk 0:00:02]} 57. fxg4 {[%clk 0:00:16]}  Bf3 {[%clk 0:00:03]} 58. g5 {[%clk 0:00:16]}  Bh5 {[%clk 0:00:04]} 59. Ke3 {[%clk 0:00:15]}  Kc3 {[%clk 0:00:04]} 60. g6 {[%clk 0:00:16]}  Bxg6 {[%clk 0:00:04]} 61. Kf4 {[%clk 0:00:17]}  d2 {[%clk 0:00:05]} 62. Kg5 {[%clk 0:00:18]}  Bh7 {[%clk 0:00:05]} 63. Kh6 {[%clk 0:00:17]}  d1=Q {[%clk 0:00:06]} 64. Kxh7 {[%clk 0:00:18]}  Qh5+ {[%clk 0:00:07]} 65. Kg7 {[%clk 0:00:17]}  Qxh4 {[%clk 0:00:07]} 0-1


[Site "https://www.chess.com"]

[Event "Titled Tuesday Blitz June 15 2021"]
[White "Gontcharov, Vladislav"]
[Black "Vaishali, Rameshbabu"]
[WhiteFideId "4123492"]
[BlackFideId "5091756"]
[WhiteElo "2503"]
[BlackElo "2313"]
[Result "1-0"]
[Round "08"]
[TimeControl "180+1"]
[Date "2021.06.15"]
[WhiteClock "0:00:04"]
[BlackClock "0:00:01"]

1. e4 {[%clk 0:03:00]}  g6 {[%clk 0:02:59]} 2. d4 {[%clk 0:02:57]}  Bg7 {[%clk 0:03:00]} 3. Nc3 {[%clk 0:02:57]}  d5 {[%clk 0:03:00]} 4. exd5 {[%clk 0:02:46]}  Nf6 {[%clk 0:03:00]} 5. Nf3 {[%clk 0:02:43]}  O-O {[%clk 0:02:59]} 6. Bc4 {[%clk 0:02:37]}  Nbd7 {[%clk 0:02:59]} 7. O-O {[%clk 0:02:35]}  Nb6 {[%clk 0:02:59]} 8. Bb3 {[%clk 0:02:35]}  a5 {[%clk 0:02:58]} 9. a3 {[%clk 0:02:32]}  Nbxd5 {[%clk 0:02:52]} 10. Nxd5 {[%clk 0:02:31]}  Nxd5 {[%clk 0:02:53]} 11. c3 {[%clk 0:02:30]}  b6 {[%clk 0:02:38]} 12. Re1 {[%clk 0:02:29]}  Bb7 {[%clk 0:02:37]} 13. Bg5 {[%clk 0:02:28]}  Re8 {[%clk 0:02:00]} 14. Qd2 {[%clk 0:02:23]}  Qd6 {[%clk 0:01:47]} 15. Re2 {[%clk 0:01:49]}  a4 {[%clk 0:01:21]} 16. Ba2 {[%clk 0:01:48]}  c5 {[%clk 0:01:18]} 17. dxc5 {[%clk 0:01:45]}  Qxc5 {[%clk 0:01:17]} 18. c4 {[%clk 0:01:28]}  Nf6 {[%clk 0:01:13]} 19. Be3 {[%clk 0:01:28]}  Qh5 {[%clk 0:01:03]} 20. Bxb6 {[%clk 0:01:18]}  Bxf3 {[%clk 0:00:58]} 21. gxf3 {[%clk 0:01:17]}  Qxf3 {[%clk 0:00:58]} 22. Re3 {[%clk 0:01:13]}  Qc6 {[%clk 0:00:51]} 23. c5 {[%clk 0:01:11]}  Bh6 {[%clk 0:00:47]} 24. Rae1 {[%clk 0:01:04]}  Bxe3 {[%clk 0:00:41]} 25. Qxe3 {[%clk 0:01:04]}  Nd7 {[%clk 0:00:31]} 26. Qf4 {[%clk 0:00:49]}  e6 {[%clk 0:00:26]} 27. Bc7 {[%clk 0:00:34]}  Qxc5 {[%clk 0:00:21]} 28. Bd6 {[%clk 0:00:34]}  Qf5 {[%clk 0:00:20]} 29. Qg3 {[%clk 0:00:34]}  Rac8 {[%clk 0:00:20]} 30. Bb1 {[%clk 0:00:32]}  Qh5 {[%clk 0:00:19]} 31. Be4 {[%clk 0:00:28]}  Rc4 {[%clk 0:00:19]} 32. Bf3 {[%clk 0:00:27]}  Qh4 {[%clk 0:00:19]} 33. Rd1 {[%clk 0:00:21]}  Qxg3+ {[%clk 0:00:17]} 34. hxg3 {[%clk 0:00:21]}  Nf6 {[%clk 0:00:15]} 35. Be5 {[%clk 0:00:18]}  Nd5 {[%clk 0:00:15]} 36. Bxd5 {[%clk 0:00:16]}  exd5 {[%clk 0:00:15]} 37. Rxd5 {[%clk 0:00:16]}  Re4 {[%clk 0:00:13]} 38. f4 {[%clk 0:00:15]}  Re2 {[%clk 0:00:13]} 39. Kf1 {[%clk 0:00:15]}  Rc2 {[%clk 0:00:13]} 40. Kg1 {[%clk 0:00:12]}  h6 {[%clk 0:00:12]} 41. Rd6 {[%clk 0:00:11]}  Rec8 {[%clk 0:00:12]} 42. g4 {[%clk 0:00:08]}  Re2 {[%clk 0:00:12]} 43. Kf1 {[%clk 0:00:08]}  Rec2 {[%clk 0:00:12]} 44. g5 {[%clk 0:00:08]}  hxg5 {[%clk 0:00:11]} 45. fxg5 {[%clk 0:00:08]}  Re8 {[%clk 0:00:10]} 46. Bf6 {[%clk 0:00:08]}  Rh2 {[%clk 0:00:09]} 47. Rc6 {[%clk 0:00:06]}  Rd2 {[%clk 0:00:08]} 48. Rc7 {[%clk 0:00:05]}  Rd5 {[%clk 0:00:08]} 49. Rc4 {[%clk 0:00:05]}  Rf5+ {[%clk 0:00:08]} 50. Kg2 {[%clk 0:00:05]}  Re2+ {[%clk 0:00:07]} 51. Kg3 {[%clk 0:00:05]}  Rxf6 {[%clk 0:00:07]} 52. gxf6 {[%clk 0:00:05]}  Rxb2 {[%clk 0:00:08]} 53. Rxa4 {[%clk 0:00:05]}  Rb6 {[%clk 0:00:07]} 54. Rf4 {[%clk 0:00:06]}  Ra6 {[%clk 0:00:05]} 55. Rf3 {[%clk 0:00:06]}  Kh7 {[%clk 0:00:05]} 56. Kg4 {[%clk 0:00:06]}  Ra4+ {[%clk 0:00:06]} 57. Kg5 {[%clk 0:00:06]}  Ra5+ {[%clk 0:00:06]} 58. Kg4 {[%clk 0:00:07]}  g5 {[%clk 0:00:06]} 59. Kh5 {[%clk 0:00:05]}  Rb5 {[%clk 0:00:05]} 60. Rg3 {[%clk 0:00:05]}  Ra5 {[%clk 0:00:03]} 61. Rxg5 {[%clk 0:00:05]}  Rxa3 {[%clk 0:00:03]} 62. Rg7+ {[%clk 0:00:05]}  Kh8 {[%clk 0:00:03]} 63. Rxf7 {[%clk 0:00:05]}  Rh3+ {[%clk 0:00:03]} 64. Kg5 {[%clk 0:00:05]}  Rg3+ {[%clk 0:00:03]} 65. Kf4 {[%clk 0:00:05]}  Ra3 {[%clk 0:00:03]} 66. Rd7 {[%clk 0:00:05]}  Kg8 {[%clk 0:00:02]} 67. Kf5 {[%clk 0:00:05]}  Ra5+ {[%clk 0:00:02]} 68. Kg6 {[%clk 0:00:04]}  Ra1 {[%clk 0:00:01]} 69. Rd8# {[%clk 0:00:04]} 1-0


[Site "https://www.chess.com"]

[Event "Titled Tuesday Blitz June 15 2021"]
[White "Hansen, Eric"]
[Black "Andreikin, Dmitry"]
[WhiteFideId "2606771"]
[BlackFideId "4158814"]
[WhiteElo "2568"]
[BlackElo "2782"]
[Result "0-1"]
[Round "08"]
[TimeControl "180+1"]
[Date "2021.06.15"]
[WhiteClock "0:00:03"]
[BlackClock "0:00:22"]

1. b3 {[%clk 0:02:57]}  e5 {[%clk 0:02:59]} 2. Bb2 {[%clk 0:02:57]}  Nc6 {[%clk 0:02:59]} 3. e3 {[%clk 0:02:58]}  Nf6 {[%clk 0:02:52]} 4. Bb5 {[%clk 0:02:57]}  Bd6 {[%clk 0:02:46]} 5. Na3 {[%clk 0:02:56]}  Bb4 {[%clk 0:02:43]} 6. Nc4 {[%clk 0:02:38]}  e4 {[%clk 0:02:43]} 7. Ne2 {[%clk 0:02:27]}  O-O {[%clk 0:02:41]} 8. a3 {[%clk 0:02:10]}  Be7 {[%clk 0:02:39]} 9. Ng3 {[%clk 0:01:58]}  Nb8 {[%clk 0:02:20]} 10. Nf5 {[%clk 0:00:59]}  a6 {[%clk 0:02:11]} 11. Ba4 {[%clk 0:00:20]}  b5 {[%clk 0:02:09]} 12. g4 {[%clk 0:00:20]}  d5 {[%clk 0:01:40]} 13. Ne5 {[%clk 0:00:18]}  bxa4 {[%clk 0:01:40]} 14. Nxe7+ {[%clk 0:00:14]}  Qxe7 {[%clk 0:01:39]} 15. g5 {[%clk 0:00:14]}  Nfd7 {[%clk 0:01:38]} 16. Ng4 {[%clk 0:00:13]}  Qxg5 {[%clk 0:01:25]} 17. h4 {[%clk 0:00:13]}  Qh5 {[%clk 0:01:21]} 18. Rg1 {[%clk 0:00:10]}  f5 {[%clk 0:00:51]} 19. Nf6+ {[%clk 0:00:03]}  Nxf6 {[%clk 0:00:47]} 20. Rxg7+ {[%clk 0:00:04]}  Kh8 {[%clk 0:00:26]} 21. Qxh5 {[%clk 0:00:04]}  Nxh5 {[%clk 0:00:27]} 22. Rg6+ {[%clk 0:00:02]}  Nf6 {[%clk 0:00:23]} 23. Bxf6+ {[%clk 0:00:02]}  Rxf6 {[%clk 0:00:22]} 24. Rxf6 {[%clk 0:00:03]}  Kg7 {[%clk 0:00:22]} 0-1


[Site "https://www.chess.com"]

[Event "Titled Tuesday Blitz June 15 2021"]
[White "Harutyunyan, Tigran K."]
[Black "Iskusnyh, Sergei"]
[WhiteFideId "13303635"]
[BlackFideId "4120027"]
[WhiteElo "2444"]
[BlackElo "2492"]
[Result "1/2-1/2"]
[Round "08"]
[TimeControl "180+1"]
[Date "2021.06.15"]
[WhiteClock "0:00:07"]
[BlackClock "0:00:06"]

1. c4 {[%clk 0:02:59]}  c5 {[%clk 0:02:59]} 2. g3 {[%clk 0:02:57]}  g6 {[%clk 0:02:58]} 3. Bg2 {[%clk 0:02:58]}  Bg7 {[%clk 0:02:59]} 4. Nf3 {[%clk 0:02:58]}  Nc6 {[%clk 0:02:59]} 5. Nc3 {[%clk 0:02:54]}  d6 {[%clk 0:02:59]} 6. O-O {[%clk 0:02:53]}  e6 {[%clk 0:02:58]} 7. b3 {[%clk 0:02:42]}  Nge7 {[%clk 0:02:58]} 8. Bb2 {[%clk 0:02:43]}  O-O {[%clk 0:02:55]} 9. d3 {[%clk 0:02:43]}  b6 {[%clk 0:02:52]} 10. Qd2 {[%clk 0:02:43]}  Bb7 {[%clk 0:02:51]} 11. Ne4 {[%clk 0:02:42]}  e5 {[%clk 0:02:47]} 12. e3 {[%clk 0:02:39]}  Qd7 {[%clk 0:02:40]} 13. Nc3 {[%clk 0:02:36]}  f5 {[%clk 0:02:38]} 14. Rfe1 {[%clk 0:02:29]}  h6 {[%clk 0:02:30]} 15. Nd5 {[%clk 0:02:24]}  Nxd5 {[%clk 0:02:24]} 16. cxd5 {[%clk 0:02:24]}  Nb4 {[%clk 0:02:24]} 17. e4 {[%clk 0:02:19]}  Ba6 {[%clk 0:02:12]} 18. d4 {[%clk 0:01:59]}  fxe4 {[%clk 0:01:36]} 19. Rxe4 {[%clk 0:01:58]}  exd4 {[%clk 0:01:16]} 20. Bxd4 {[%clk 0:01:36]}  cxd4 {[%clk 0:00:44]} 21. Qxb4 {[%clk 0:01:34]}  d3 {[%clk 0:00:27]} 22. Rd1 {[%clk 0:01:33]}  Rae8 {[%clk 0:00:24]} 23. Re6 {[%clk 0:01:26]}  Rxe6 {[%clk 0:00:20]} 24. Bh3 {[%clk 0:01:26]}  Kh7 {[%clk 0:00:17]} 25. Bxe6 {[%clk 0:01:25]}  Qd8 {[%clk 0:00:16]} 26. Ne1 {[%clk 0:01:08]}  Qf6 {[%clk 0:00:16]} 27. f4 {[%clk 0:01:08]}  g5 {[%clk 0:00:13]} 28. Nxd3 {[%clk 0:01:06]}  Bxd3 {[%clk 0:00:12]} 29. Rxd3 {[%clk 0:01:06]}  gxf4 {[%clk 0:00:13]} 30. Qe4+ {[%clk 0:00:41]}  Kh8 {[%clk 0:00:12]} 31. gxf4 {[%clk 0:00:39]}  Qxf4 {[%clk 0:00:11]} 32. Qxf4 {[%clk 0:00:39]}  Rxf4 {[%clk 0:00:12]} 33. Kg2 {[%clk 0:00:37]}  Be5 {[%clk 0:00:11]} 34. Rd2 {[%clk 0:00:35]}  Bd4 {[%clk 0:00:09]} 35. Rc2 {[%clk 0:00:34]}  Bc5 {[%clk 0:00:09]} 36. Kg3 {[%clk 0:00:34]}  Rf6 {[%clk 0:00:08]} 37. Rc4 {[%clk 0:00:32]}  a5 {[%clk 0:00:07]} 38. Rg4 {[%clk 0:00:30]}  Kh7 {[%clk 0:00:06]} 39. h4 {[%clk 0:00:29]}  h5 {[%clk 0:00:06]} 40. Rg5 {[%clk 0:00:29]}  Bf2+ {[%clk 0:00:05]} 41. Kh3 {[%clk 0:00:28]}  Kh6 {[%clk 0:00:06]} 42. Rg8 {[%clk 0:00:26]}  Rf4 {[%clk 0:00:06]} 43. Rd8 {[%clk 0:00:25]}  Rxh4+ {[%clk 0:00:05]} 44. Kg2 {[%clk 0:00:24]}  Bc5 {[%clk 0:00:05]} 45. Kg3 {[%clk 0:00:20]}  Rd4 {[%clk 0:00:05]} 46. Bf7 {[%clk 0:00:19]}  h4+ {[%clk 0:00:05]} 47. Kh3 {[%clk 0:00:20]}  Kg5 {[%clk 0:00:05]} 48. Rg8+ {[%clk 0:00:20]}  Kf6 {[%clk 0:00:04]} 49. Be6 {[%clk 0:00:20]}  Ke5 {[%clk 0:00:04]} 50. Rg5+ {[%clk 0:00:19]}  Kf4 {[%clk 0:00:04]} 51. Kxh4 {[%clk 0:00:17]}  Ke3+ {[%clk 0:00:03]} 52. Kh5 {[%clk 0:00:17]}  Kd2 {[%clk 0:00:04]} 53. Rg2+ {[%clk 0:00:16]}  Kc3 {[%clk 0:00:03]} 54. Kg5 {[%clk 0:00:17]}  Kb4 {[%clk 0:00:03]} 55. Kf6 {[%clk 0:00:17]}  Ka3 {[%clk 0:00:03]} 56. Ke7 {[%clk 0:00:17]}  Rd1 {[%clk 0:00:03]} 57. Kd7 {[%clk 0:00:14]}  Ra1 {[%clk 0:00:04]} 58. Kc6 {[%clk 0:00:08]}  Rxa2 {[%clk 0:00:04]} 59. Rg3 {[%clk 0:00:08]}  Rb2 {[%clk 0:00:04]} 60. Bf5 {[%clk 0:00:08]}  Rxb3 {[%clk 0:00:04]} 61. Rg2 {[%clk 0:00:08]}  a4 {[%clk 0:00:04]} 62. Bc2 {[%clk 0:00:05]}  Rb2 {[%clk 0:00:04]} 63. Rg3+ {[%clk 0:00:06]}  Kb4 {[%clk 0:00:04]} 64. Rg4+ {[%clk 0:00:06]}  Kc3 {[%clk 0:00:04]} 65. Bxa4 {[%clk 0:00:06]}  Rb4 {[%clk 0:00:04]} 66. Rxb4 {[%clk 0:00:05]}  Kxb4 {[%clk 0:00:04]} 67. Bb5 {[%clk 0:00:06]}  Ka5 {[%clk 0:00:04]} 68. Bd3 {[%clk 0:00:06]}  Kb4 {[%clk 0:00:04]} 69. Bb5 {[%clk 0:00:06]}  Ka5 {[%clk 0:00:05]} 70. Bd3 {[%clk 0:00:07]}  Kb4 {[%clk 0:00:06]} 71. Bb5 {[%clk 0:00:07]} 1/2-1/2


[Site "https://www.chess.com"]